[Event "DVM U20w 2019"]
[Site "Braunschweig"]
[Date "2019.12.29"]
[Round "5"]
[White "Danilova, Sofia"]
[Black "Kessen, Fanny"]
[Result "0-1"]
[ECO "A06"]
[WhiteElo "980"]
[BlackElo "1265"]
[Annotator "NA"]
[PlyCount "92"]
[EventDate "2019.12.27"]
[EventType "team-tourn"]
[EventRounds "7"]
[EventCountry "GER"]
[SourceTitle "playchess.com"]
[Source "ChessBase"]
[SourceQuality "1"]
[WhiteTeam "SV Lingen"]
[BlackTeam "SC Borussia Lichtenberg"]
[TimeControl "40/5400+30:1800+30"]

1. Nf3 {[%emt 0:00:00]} d5 {[%emt 0:00:00]} 2. g3 {[%emt 0:00:00]} c6 {[%emt 0:01:43]} 3. c4 {[%emt 0:00:18]} dxc4 {[%emt 0:01:51]} 4. Nc3 {[%emt 0:00:15]} g6 {[%emt 0:01:15]} 5. Bg2 {[%emt 0:01:11]} Bg7 {[%emt 0:00:25]} 6. d4 {[%emt 0:00:43]} cxd3 {[%emt 0:02:28]} 7. exd3 {[%emt 0:00:28]} Nf6 {[%emt 0:04:03]} 8. O-O {[%emt 0:01:05]} O-O {[%emt 0:00:27]} 9. Rb1 {[%emt 0:01:36]} Bg4 {[%emt 0:01:10]} 10. Qd2 {[%emt 0:01:53]} Qc8 {[%emt 0:02:14]} 11. Re1 {[%emt 0:01:22]} Re8 {[%emt 0:00:52]} 12. Ne5 {[%emt 0:00:49]} Bh3 {[%emt 0:01:07]} 13. Bf3 {[%emt 0:01:14]} Nbd7 {[%emt 0:01:47]} 14. d4 {[%emt 0:02:00]} Nxe5 {[%emt 0:04:42]} 15. dxe5 {[%emt 0:00:30]} Ng4 {[%emt 0:01:29]} 16. e6 {[%emt 0:03:27]} fxe6 {[%emt 0:02:49]} 17. Qd1 {[%emt 0:03:57]} e5 {[%emt 0:01:53]} 18. Ne4 {[%emt 0:01:11]} h6 {[%emt 0:04:04]} 19. Qb3+ {[%emt 0:02:09]} Kh8 {[%emt 0:02:37]} 20. Qf7 {[%emt 0:02:33]} Rf8 {[%emt 0:01:54]} 21. Qb3 {[%emt 0:01:02]} Qf5 {[%emt 0:00:56]} 22. Bxg4 {[%emt 0:02:27]} Qxg4 {[%emt 0:02:05]} 23. Re3 {[%emt 0:03:40]} Rad8 {[%emt 0:02:30]} 24. Bd2 {[%emt 0:01:14]} Qf5 {[%emt 0:00:47]} 25. Rd1 {[%emt 0:00:36]} Rd4 {[%emt 0:03:13]} 26. Be1 {[%emt 0:02:20]} Rxe4 {[%emt 0:01:10]} 27. Rxe4 {[%emt 0:02:17]} Qxe4 {[%emt 0:00:35]} 28. f3 {[%emt 0:00:52]} Qe2 {[%emt 0:01:48]} 29. Bf2 {[%emt 0:00:51]} e4 {[%emt 0:01:34]} 30. Re1 {[%emt 0:01:00]} Qd2 {[%emt 0:01:41]} 31. Qe3 {[%emt 0:03:04]} Qxe3 {[%emt 0:01:49]} 32. Rxe3 {[%emt 0:00:37]} exf3 {[%emt 0:02:26]} 33. Rxe7 {[%emt 0:00:33]} Rd8 {[%emt 0:03:08]} 34. Re1 {[%emt 0:04:39]} Bxb2 {[%emt 0:01:44]} 35. Bxa7 {[%emt 0:00:31]} Bd4+ {[%emt 0:01:01]} 36. Bxd4+ Rxd4 37. Re8+ {[%emt 0:01:46]} Kg7 {[%emt 0:01:06]} 38. Re7+ {[%emt 0:00:29]} Kf6 {[%emt 0:00:16]} 39. Rxb7 {[%emt 0:00:29]} Rd2 {[%emt 0:00:22]} 40. Rb1 {[%emt 0:01:21]} f2+ {[%emt 0:02:03]} 41. Kh1 {[%emt 0:30:13]} f1=Q+ 42. Rxf1+ Bxf1 {[%emt 0:33:36]} 43. a4 {[%emt 0:00:45]} c5 {[%emt 0:01:08]} 44. a5 {[%emt 0:00:10]} Bb5 {[%emt 0:00:44]} 45. a6 {[%emt 0:00:16]} Bxa6 {[%emt 0:00:14]} 46. h4 {[%emt 0:00:08]} c4 {[%emt 0:00:15] normal} 0-1

[Event "DVM U20w 2019"]
[Site "Braunschweig"]
[Date "2019.12.29"]
[Round "6"]
[White "Moenster, Madita"]
[Black "Bashylina, Luisa"]
[Result "0-1"]
[ECO "B28"]
[WhiteElo "1956"]
[BlackElo "1935"]
[Annotator "NA"]
[PlyCount "46"]
[EventDate "2019.12.27"]
[EventType "team-tourn"]
[EventRounds "7"]
[EventCountry "GER"]
[SourceTitle "playchess.com"]
[Source "ChessBase"]
[SourceQuality "1"]
[WhiteTeam "SV Lingen"]
[BlackTeam "SG Solingen"]
[TimeControl "40/5400+30:1800+30"]

1. e4 c5 2. Nf3 a6 3. c4 Nc6 4. d4 cxd4 5. Nxd4 e5 6. Nc2 Nf6 7. Nc3 d6 8. Be2 Be7 9. O-O h6 10. Ne3 Be6 11. Bd3 O-O 12. Ncd5 Bxd5 13. cxd5 Nd4 14. Bd2 Nd7 15. Bc3 g6 16. Kh1 Bf6 17. Nc4 b5 18. Nd2 Nc5 19. Nf3 Nxf3 20. Qxf3 Rc8 21. Qe2 Kh7 22. Bc2 Qb6 23. Qe1 Nb7 {normal} 0-1

[Event "DVM U20w 2019"]
[Site "Braunschweig"]
[Date "2019.12.29"]
[Round "6"]
[White "Möller, Lisa-Marie"]
[Black "Köhler, Inken"]
[Result "1/2-1/2"]
[ECO "B07"]
[WhiteElo "1934"]
[BlackElo "1998"]
[Annotator "NA"]
[PlyCount "57"]
[EventDate "2019.12.27"]
[EventType "team-tourn"]
[EventRounds "7"]
[EventCountry "GER"]
[SourceTitle "playchess.com"]
[Source "ChessBase"]
[SourceQuality "1"]
[WhiteTeam "Düsseldorfer SK"]
[BlackTeam "TuRa Harksheide Norderstedt"]
[TimeControl "40/5400+30:1800+30"]

1. e4 {[%emt 0:00:00]} d6 {[%emt 0:00:00]} 2. d4 {[%emt 0:00:00]} Nf6 {[%emt 0:00:00]} 3. Nc3 {[%emt 0:00:03]} Nbd7 {[%emt 0:00:00]} 4. Be3 {[%emt 0:00:28]} e5 {[%emt 0:00:17]} 5. f3 {[%emt 0:00:42]} Be7 {[%emt 0:00:36]} 6. Nge2 {[%emt 0:00:14]} O-O {[%emt 0:00:43]} 7. Qd2 {[%emt 0:00:21]} c6 {[%emt 0:01:06]} 8. g4 {[%emt 0:02:20]} b5 {[%emt 0:04:43]} 9. Ng3 {[%emt 0:03:25]} exd4 {[%emt 0:08:25]} 10. Bxd4 {[%emt 0:01:05]} Ne5 {[%emt 0:00:40]} 11. Qf2 {[%emt 0:10:32]} b4 {[%emt 0:03:49]} 12. Nb1 {[%emt 0:10:17]} c5 {[%emt 0:02:47]} 13. Bxe5 {[%emt 0:02:47]} dxe5 {[%emt 0:00:07]} 14. Nd2 {[%emt 0:03:13]} Be6 {[%emt 0:04:28]} 15. Bc4 {[%emt 0:02:36]} Qd7 {[%emt 0:07:20]} 16. O-O-O {[%emt 0:05:56]} Bxc4 {[%emt 0:02:32]} 17. Nxc4 {[%emt 0:00:17]} Qe6 {[%emt 0:00:12]} 18. Qe2 {[%emt 0:02:27]} Rfd8 {[%emt 0:06:45]} 19. Kb1 {[%emt 0:03:24]} Ne8 {[%emt 0:04:39]} 20. Nf5 {[%emt 0:08:56]} Nc7 {[%emt 0:02:23]} 21. Nce3 {[%emt 0:03:12]} Bg5 {[%emt 0:05:03]} 22. h4 {[%emt 0:03:14]} Bxe3 {[%emt 0:03:51]} 23. Qxe3 {[%emt 0:01:05]} g6 {[%emt 0:13:59]} 24. Rxd8+ {[%emt 0:16:04]} Rxd8 {[%emt 0:00:10]} 25. Qh6 {[%emt 0:00:30]} Ne8 {[%emt 0:03:27]} 26. h5 {[%emt 0:01:54]} Rd7 {[%emt 0:02:43]} 27. hxg6 {[%emt 0:01:32]} fxg6 {[%emt 0:01:40]} 28. Ne3 {[%emt 0:00:52]} Qf7 {[%emt 0:03:18]} 29. Qh3 {normal} 1/2-1/2

[Event "DVM U20w 2019"]
[Site "Braunschweig"]
[Date "2019.12.29"]
[Round "6"]
[White "Peglau, Mirjam"]
[Black "Ziegenfuss, Antonia"]
[Result "0-1"]
[ECO "A31"]
[WhiteElo "1916"]
[BlackElo "2052"]
[Annotator "NA"]
[PlyCount "50"]
[EventDate "2019.12.27"]
[EventType "team-tourn"]
[EventRounds "7"]
[EventCountry "GER"]
[SourceTitle "playchess.com"]
[Source "ChessBase"]
[SourceQuality "1"]
[WhiteTeam "Schachzentrum Seeblick"]
[BlackTeam "OSG Baden-Baden"]
[TimeControl "40/5400+30:1800+30"]

1. c4 {[%emt 0:00:00]} c5 {[%emt 0:00:00]} 2. Nf3 {[%emt 0:00:00]} Nf6 {[%emt 0:00:00]} 3. d4 {[%emt 0:00:00]} cxd4 {[%emt 0:07:55]} 4. Nxd4 {[%emt 0:00:00]} Nc6 {[%emt 0:02:11]} 5. Nc3 {[%emt 0:00:39]} d6 {[%emt 0:01:10]} 6. e4 {[%emt 0:00:12]} g6 {[%emt 0:01:29]} 7. Be2 {[%emt 0:00:16]} Bg7 {[%emt 0:00:09]} 8. Be3 {[%emt 0:00:11]} O-O {[%emt 0:01:33]} 9. O-O {[%emt 0:00:07]} Nd7 {[%emt 0:05:56]} 10. Rc1 {[%emt 0:03:33]} Nc5 {[%emt 0:07:58]} 11. Qd2 {[%emt 0:02:59]} Ne6 {[%emt 0:15:31]} 12. Nc2 {[%emt 0:03:39]} b6 {[%emt 0:07:59]} 13. b3 {[%emt 0:01:02]} Bb7 {[%emt 0:00:51]} 14. Nd5 {[%emt 0:00:41]} Nc5 {[%emt 0:06:08]} 15. f3 {[%emt 0:00:49]} e6 {[%emt 0:10:55]} 16. Nc3 {[%emt 0:02:07]} Be5 {[%emt 0:02:57]} 17. Rfd1 {[%emt 0:04:18]} Qh4 {[%emt 0:04:38]} 18. g3 {[%emt 0:02:17]} Bxg3 {[%emt 0:01:54]} 19. hxg3 {[%emt 0:00:09]} Qxg3+ {[%emt 0:00:03]} 20. Kf1 {[%emt 0:00:38]} Qh3+ {[%emt 0:02:20]} 21. Kf2 {[%emt 0:01:41]} Qh2+ {[%emt 0:00:16]} 22. Ke1 {[%emt 0:01:18]} Ne5 {[%emt 0:01:18]} 23. Nd4 {[%emt 0:06:54]} Qh1+ {[%emt 0:09:06]} 24. Kf2 {[%emt 0:00:22]} Qh2+ {[%emt 0:00:06]} 25. Ke1 {[%emt 0:01:00]} Bxe4 {[%emt 0:06:07] normal} 0-1

[Event "DVM U20w 2019"]
[Site "Braunschweig"]
[Date "2019.12.29"]
[Round "6"]
[White "Muedder, Melanie"]
[Black "Miljkovic, Jovana"]
[Result "1/2-1/2"]
[ECO "B90"]
[WhiteElo "1902"]
[BlackElo "2021"]
[Annotator "NA"]
[PlyCount "45"]
[EventDate "2019.12.27"]
[EventType "team-tourn"]
[EventRounds "7"]
[EventCountry "GER"]
[SourceTitle "playchess.com"]
[Source "ChessBase"]
[SourceQuality "1"]
[WhiteTeam "SG Solingen"]
[BlackTeam "SV Lingen"]
[TimeControl "40/5400+30:1800+30"]

1. e4 {[%emt 0:00:00]} c5 {[%emt 0:00:00]} 2. Nf3 {[%emt 0:00:00]} d6 {[%emt 0:00:00]} 3. d4 {[%emt 0:00:00]} cxd4 {[%emt 0:00:00]} 4. Nxd4 {[%emt 0:00:00]} Nf6 {[%emt 0:00:00]} 5. Nc3 {[%emt 0:00:00]} a6 {[%emt 0:00:00]} 6. Nb3 {[%emt 0:00:08]} e6 {[%emt 0:00:53]} 7. g4 {[%emt 0:00:08]} Be7 {[%emt 0:01:51]} 8. g5 {[%emt 0:01:47]} Nfd7 {[%emt 0:00:11]} 9. f4 {[%emt 0:00:54]} Nc6 {[%emt 0:12:32]} 10. Bg2 {[%emt 0:03:53]} b5 {[%emt 0:06:51]} 11. a3 {[%emt 0:04:15]} Qc7 {[%emt 0:03:56]} 12. O-O {[%emt 0:05:34]} Rb8 {[%emt 0:03:58]} 13. Qh5 {[%emt 0:13:01]} b4 {[%emt 0:05:05]} 14. axb4 {[%emt 0:04:50]} Nxb4 {[%emt 0:01:01]} 15. Nd4 {[%emt 0:08:44]} g6 {[%emt 0:02:32]} 16. Qf3 {[%emt 0:06:25]} e5 {[%emt 0:03:16]} 17. Nde2 {[%emt 0:06:51]} exf4 {[%emt 0:01:44]} 18. Bxf4 {[%emt 0:02:16]} O-O {[%emt 0:00:39]} 19. Ra4 {[%emt 0:07:30]} Ne5 {[%emt 0:03:56]} 20. Qg3 {[%emt 0:05:38]} Be6 {[%emt 0:08:50]} 21. Nd4 {[%emt 0:03:36]} Bc4 {[%emt 0:00:18]} 22. Rd1 {[%emt 0:03:16]} Nbc6 {[%emt 0:13:53]} 23. b3 {[%emt 0:08:42] normal} 1/2-1/2

[Event "DVM U20w 2019"]
[Site "Braunschweig"]
[Date "2019.12.29"]
[Round "6"]
[White "Schumann, Rabea"]
[Black "Jacoby, Angelina"]
[Result "1/2-1/2"]
[ECO "A15"]
[WhiteElo "1873"]
[BlackElo "1635"]
[Annotator "NA"]
[PlyCount "57"]
[EventDate "2019.12.27"]
[EventType "team-tourn"]
[EventRounds "7"]
[EventCountry "GER"]
[SourceTitle "playchess.com"]
[Source "ChessBase"]
[SourceQuality "1"]
[WhiteTeam "SG Güstrow/Teterow"]
[BlackTeam "Leegebrucher SF"]
[TimeControl "40/5400+30:1800+30"]

1. c4 {[%emt 0:00:00]} Nf6 {[%emt 0:00:41]} 2. g3 {[%emt 0:00:00]} e6 {[%emt 0:01:25]} 3. Bg2 {[%emt 0:00:21]} d5 {[%emt 0:00:30]} 4. Nf3 {[%emt 0:00:27]} c6 {[%emt 0:01:52]} 5. b3 {[%emt 0:03:09]} Nbd7 {[%emt 0:02:01]} 6. O-O {[%emt 0:01:20]} Bd6 {[%emt 0:04:21]} 7. Bb2 {[%emt 0:00:50]} O-O {[%emt 0:00:54]} 8. d3 {[%emt 0:01:17]} Qe7 {[%emt 0:03:23]} 9. Nbd2 {[%emt 0:01:52]} e5 {[%emt 0:05:21]} 10. e3 {[%emt 0:05:23]} Nc5 {[%emt 0:04:57]} 11. d4 {[%emt 0:03:50]} exd4 {[%emt 0:01:31]} 12. Bxd4 {[%emt 0:01:37]} Ne6 {[%emt 0:03:30]} 13. Bb2 {[%emt 0:01:51]} dxc4 {[%emt 0:01:29]} 14. Nxc4 {[%emt 0:00:52]} Bc7 {[%emt 0:00:07]} 15. Qc2 {[%emt 0:01:54]} Rd8 {[%emt 0:03:37]} 16. Rad1 {[%emt 0:03:02]} Nd5 {[%emt 0:01:59]} 17. Ba3 {[%emt 0:05:33]} Qf6 {[%emt 0:01:20]} 18. e4 {[%emt 0:03:39]} Nb6 {[%emt 0:01:58]} 19. Rxd8+ {[%emt 0:11:12]} Nxd8 {[%emt 0:05:21]} 20. Bb2 {[%emt 0:03:41]} Qe7 {[%emt 0:02:14]} 21. Qc3 {[%emt 0:04:03]} Qf8 {[%emt 0:03:18]} 22. Ne3 {[%emt 0:07:47]} Be6 {[%emt 0:03:52]} 23. Nh4 {[%emt 0:04:19]} f6 {[%emt 0:05:27]} 24. f4 {[%emt 0:07:29]} Nd7 {[%emt 0:07:36]} 25. Rc1 {[%emt 0:08:32]} Bb6 {[%emt 0:11:44]} 26. Kh1 {[%emt 0:00:55]} Qc5 {[%emt 0:01:56]} 27. Nc4 {[%emt 0:01:45]} Bxc4 {[%emt 0:03:02]} 28. Qxc4+ {[%emt 0:00:14]} Qxc4 {[%emt 0:00:17]} 29. Rxc4 {[%emt 0:00:13] normal} 1/2-1/2

[Event "DVM U20w 2019"]
[Site "Braunschweig"]
[Date "2019.12.29"]
[Round "6"]
[White "Brunner, Sophia"]
[Black "Bardorz, Jana"]
[Result "1/2-1/2"]
[ECO "A48"]
[WhiteElo "1852"]
[BlackElo "2054"]
[Annotator "NA"]
[PlyCount "53"]
[EventDate "2019.12.27"]
[EventType "team-tourn"]
[EventRounds "7"]
[EventCountry "GER"]
[SourceTitle "playchess.com"]
[Source "ChessBase"]
[SourceQuality "1"]
[WhiteTeam "SK Nordhorn-Blanke"]
[BlackTeam "SC Bavaria Regensburg"]
[TimeControl "40/5400+30:1800+30"]

1. d4 {[%emt 0:00:00]} Nf6 {[%emt 0:00:00]} 2. Nf3 {[%emt 0:00:00]} g6 {[%emt 0:00:00]} 3. c4 {[%emt 0:00:00]} Bg7 {[%emt 0:00:00]} 4. Nc3 {[%emt 0:00:08]} O-O {[%emt 0:00:00]} 5. Bf4 {[%emt 0:00:51]} d6 {[%emt 0:03:54]} 6. e4 {[%emt 0:09:31]} Nh5 {[%emt 0:06:43]} 7. Be3 {[%emt 0:01:37]} e5 {[%emt 0:03:33]} 8. dxe5 {[%emt 0:06:25]} dxe5 {[%emt 0:01:02]} 9. Qxd8 {[%emt 0:26:41]} Rxd8 {[%emt 0:00:17]} 10. Nd5 {[%emt 0:02:50]} Na6 {[%emt 0:04:01]} 11. c5 {[%emt 0:08:06]} c6 {[%emt 0:03:09]} 12. Ne7+ {[%emt 0:03:36]} Kf8 {[%emt 0:02:21]} 13. Nxc8 {[%emt 0:03:50]} Raxc8 {[%emt 0:00:44]} 14. Bxa6 {[%emt 0:04:05]} bxa6 {[%emt 0:00:13]} 15. g3 {[%emt 0:03:54]} Nf6 {[%emt 0:04:50]} 16. Bg5 {[%emt 0:02:24]} Re8 {[%emt 0:01:53]} 17. Bxf6 {[%emt 0:00:53]} Bxf6 {[%emt 0:00:09]} 18. Nd2 {[%emt 0:11:29]} Be7 {[%emt 0:05:30]} 19. Rc1 {[%emt 0:02:24]} Rb8 {[%emt 0:04:00]} 20. Nb3 {[%emt 0:00:44]} Rb5 {[%emt 0:03:19]} 21. Rc4 {[%emt 0:00:27]} Reb8 {[%emt 0:12:22]} 22. Ke2 {[%emt 0:01:08]} a5 {[%emt 0:03:14]} 23. Rhc1 {[%emt 0:01:04]} Ke8 {[%emt 0:05:36]} 24. f3 {[%emt 0:00:59]} Bd8 {[%emt 0:02:02]} 25. Rd1 {[%emt 0:02:44]} Bc7 {[%emt 0:01:04]} 26. Ke3 {[%emt 0:01:30]} Rb4 {[%emt 0:03:42]} 27. Rxb4 {[%emt 0:02:56] normal} 1/2-1/2

[Event "DVM U20w 2019"]
[Site "Braunschweig"]
[Date "2019.12.29"]
[Round "6"]
[White "Hartmann, Cora"]
[Black "La, Quynh Trang"]
[Result "1-0"]
[ECO "A08"]
[WhiteElo "1842"]
[BlackElo "1436"]
[Annotator "NA"]
[PlyCount "111"]
[EventDate "2019.12.27"]
[EventType "team-tourn"]
[EventRounds "7"]
[EventCountry "GER"]
[SourceTitle "playchess.com"]
[Source "ChessBase"]
[SourceQuality "1"]
[WhiteTeam "SC Borussia Lichtenberg"]
[BlackTeam "SG Trier"]
[TimeControl "40/5400+30:1800+30"]

1. e4 {[%emt 0:00:00]} e6 {[%emt 0:00:00]} 2. d3 {[%emt 0:00:15]} d5 {[%emt 0:01:16]} 3. Nd2 {[%emt 0:00:36]} Nf6 {[%emt 0:01:27]} 4. Ngf3 {[%emt 0:02:46]} c5 {[%emt 0:01:54]} 5. g3 {[%emt 0:00:40]} Nc6 {[%emt 0:01:28]} 6. Bg2 {[%emt 0:00:37]} Be7 {[%emt 0:02:48]} 7. O-O {[%emt 0:00:20]} O-O {[%emt 0:00:05]} 8. Re1 {[%emt 0:00:57]} Rb8 {[%emt 0:02:56]} 9. e5 {[%emt 0:00:43]} Nd7 {[%emt 0:00:21]} 10. Nf1 {[%emt 0:00:22]} Re8 {[%emt 0:10:50]} 11. h4 {[%emt 0:02:02]} Nf8 {[%emt 0:05:08]} 12. N1h2 {[%emt 0:04:39]} b6 {[%emt 0:08:53]} 13. Ng4 {[%emt 0:05:51]} Qd7 {[%emt 0:06:17]} 14. Bf4 {[%emt 0:10:11]} Bb7 {[%emt 0:02:15]} 15. h5 {[%emt 0:01:46]} h6 {[%emt 0:02:09]} 16. c3 {[%emt 0:15:12]} d4 {[%emt 0:06:52]} 17. c4 {[%emt 0:01:55]} Ba6 {[%emt 0:02:35]} 18. b3 {[%emt 0:11:20]} b5 {[%emt 0:02:40]} 19. Nd2 {[%emt 0:02:10]} bxc4 {[%emt 0:09:53]} 20. Nxc4 {[%emt 0:00:15]} Bxc4 {[%emt 0:00:10]} 21. bxc4 {[%emt 0:01:01]} Rb2 {[%emt 0:02:36]} 22. Qa4 {[%emt 0:10:10]} Nb4 {[%emt 0:01:08]} 23. Qa3 {[%emt 0:02:51]} Rc2 {[%emt 0:02:34]} 24. Rec1 {[%emt 0:02:19]} Rxc1+ {[%emt 0:01:12]} 25. Rxc1 {[%emt 0:00:21]} Qc7 {[%emt 0:04:37]} 26. Qb3 {[%emt 0:06:46]} Rb8 {[%emt 0:01:48]} 27. Bd2 {[%emt 0:05:32]} Nc6 {[%emt 0:00:46]} 28. Qc2 {[%emt 0:00:43]} Nd7 {[%emt 0:04:08]} 29. f4 {[%emt 0:00:21]} Nb4 {[%emt 0:02:18]} 30. Qb3 {[%emt 0:01:39]} Nc6 {[%emt 0:01:22]} 31. Qa3 {[%emt 0:01:06]} Nb4 {[%emt 0:01:45]} 32. Nf2 {[%emt 0:01:25]} Rb6 {[%emt 0:01:18]} 33. Qb3 {[%emt 0:01:45]} Nc6 {[%emt 0:02:18]} 34. Qa4 {[%emt 0:01:00]} Nb4 {[%emt 0:01:38]} 35. a3 {[%emt 0:00:37]} Ra6 {[%emt 0:01:02]} 36. Qb3 Nc6 {[%emt 0:01:03]} 37. Rb1 {[%emt 0:01:53]} Rb6 {[%emt 0:01:25]} 38. Qa2 {[%emt 0:00:37]} Rxb1+ {[%emt 0:01:08]} 39. Qxb1 {[%emt 0:00:01]} a6 {[%emt 0:02:13]} 40. Qb3 {[%emt 0:03:59]} f6 {[%emt 0:02:03]} 41. exf6 {[%emt 0:07:55]} Nxf6 {[%emt 0:01:01]} 42. Qa4 {[%emt 0:01:59]} Nb8 {[%emt 0:02:41]} 43. Ne4 {[%emt 0:02:30]} Qd7 {[%emt 0:02:56]} 44. Nxf6+ {[%emt 0:01:07]} gxf6 {[%emt 0:01:00]} 45. Qxd7 {[%emt 0:00:29]} Nxd7 {[%emt 0:00:06]} 46. Bb7 {[%emt 0:00:55]} Nb8 {[%emt 0:00:43]} 47. f5 {[%emt 0:03:00]} e5 {[%emt 0:08:17]} 48. Bxh6 {[%emt 0:00:58]} Kh7 {[%emt 0:01:05]} 49. Bd2 {[%emt 0:00:31]} Bd8 {[%emt 0:01:10]} 50. Kf2 {[%emt 0:00:51]} a5 {[%emt 0:03:14]} 51. Kf3 {[%emt 0:00:37]} Nd7 {[%emt 0:01:40]} 52. Ke4 {[%emt 0:01:50]} Nb6 {[%emt 0:07:48]} 53. Bxa5 {[%emt 0:02:53]} Kh6 {[%emt 0:00:14]} 54. Bd2+ {[%emt 0:03:29]} Kxh5 {[%emt 0:00:20]} 55. Kf3 {[%emt 0:00:46]} Na4 {[%emt 0:01:15]} 56. Bc6 {[%emt 0:00:12] normal} 1-0

[Event "DVM U20w 2019"]
[Site "Braunschweig"]
[Date "2019.12.29"]
[Round "6"]
[White "Schnabel, Luise"]
[Black "Rudolph, Eva"]
[Result "1/2-1/2"]
[ECO "B24"]
[WhiteElo "1836"]
[BlackElo "1711"]
[Annotator "NA"]
[PlyCount "45"]
[EventDate "2019.12.27"]
[EventType "team-tourn"]
[EventRounds "7"]
[EventCountry "GER"]
[SourceTitle "playchess.com"]
[Source "ChessBase"]
[SourceQuality "1"]
[WhiteTeam "TuRa Harksheide Norderstedt"]
[BlackTeam "Düsseldorfer SK"]
[TimeControl "40/5400+30:1800+30"]

1. e4 {[%emt 0:00:00]} c5 {[%emt 0:00:00]} 2. Nc3 {[%emt 0:00:00]} Nc6 {[%emt 0:00:58]} 3. g3 {[%emt 0:00:40]} g6 {[%emt 0:00:52]} 4. Bg2 {[%emt 0:00:57]} Bg7 {[%emt 0:00:55]} 5. d3 {[%emt 0:00:37]} e6 {[%emt 0:02:44]} 6. f4 {[%emt 0:02:16]} Nge7 {[%emt 0:01:30]} 7. Nf3 {[%emt 0:01:11]} O-O {[%emt 0:02:14]} 8. Be3 {[%emt 0:01:39]} b6 {[%emt 0:01:40]} 9. e5 {[%emt 0:07:58]} d6 {[%emt 0:06:31]} 10. exd6 {[%emt 0:06:43]} Qxd6 {[%emt 0:00:20]} 11. Bf2 {[%emt 0:04:33]} Bb7 {[%emt 0:06:08]} 12. O-O {[%emt 0:09:33]} Rfd8 {[%emt 0:03:13]} 13. Ng5 {[%emt 0:09:28]} Qd7 {[%emt 0:01:57]} 14. Rb1 {[%emt 0:08:02]} Nd5 {[%emt 0:07:51]} 15. Nce4 {[%emt 0:04:12]} Rab8 {[%emt 0:08:45]} 16. Qd2 {[%emt 0:04:58]} Nd4 {[%emt 0:05:10]} 17. c3 {[%emt 0:05:51]} Nc6 {[%emt 0:02:00]} 18. Nf3 {[%emt 0:03:35]} Nf6 {[%emt 0:01:40]} 19. Nxf6+ {[%emt 0:07:22]} Bxf6 {[%emt 0:00:02]} 20. Rfd1 {[%emt 0:00:35]} Bg7 {[%emt 0:09:49]} 21. Rbc1 {[%emt 0:05:03]} Rbc8 {[%emt 0:03:53]} 22. Qe1 {[%emt 0:02:49]} Qe7 {[%emt 0:02:44]} 23. Rc2 {[%emt 0:01:24] normal} 1/2-1/2

[Event "DVM U20w 2019"]
[Site "Braunschweig"]
[Date "2019.12.29"]
[Round "6"]
[White "Berelowitsch, Dana"]
[Black "Möller, Hannah"]
[Result "1-0"]
[ECO "B06"]
[WhiteElo "1792"]
[BlackElo "1832"]
[Annotator "NA"]
[PlyCount "62"]
[EventDate "2019.12.27"]
[EventType "team-tourn"]
[EventRounds "7"]
[EventCountry "GER"]
[SourceTitle "playchess.com"]
[Source "ChessBase"]
[SourceQuality "1"]
[WhiteTeam "SG Solingen"]
[BlackTeam "SV Lingen"]
[TimeControl "40/5400+30:1800+30"]

1. e4 {[%emt 0:00:00]} g6 {[%emt 0:00:00]} 2. d4 {[%emt 0:00:00]} Bg7 {[%emt 0:00:00]} 3. Nc3 {[%emt 0:00:00]} d6 {[%emt 0:00:04]} 4. f4 {[%emt 0:00:00]} c6 {[%emt 0:01:55]} 5. Nf3 {[%emt 0:00:44]} Nf6 {[%emt 0:02:18]} 6. Bd3 {[%emt 0:00:56]} Nbd7 {[%emt 0:00:55]} 7. O-O {[%emt 0:01:08]} O-O {[%emt 0:00:13]} 8. e5 {[%emt 0:06:00]} dxe5 {[%emt 0:02:25]} 9. fxe5 {[%emt 0:05:46]} Nd5 {[%emt 0:00:25]} 10. Ng5 {[%emt 0:11:37]} N7b6 {[%emt 0:01:59]} 11. Nce4 {[%emt 0:09:54]} Nc7 {[%emt 0:00:52]} 12. c3 {[%emt 0:01:08]} Ne6 {[%emt 0:01:33]} 13. Nxe6 {[%emt 0:07:01]} Bxe6 {[%emt 0:00:11]} 14. Ng5 {[%emt 0:00:36]} Bd7 {[%emt 0:01:38]} 15. Qb3 {[%emt 0:04:18]} e6 {[%emt 0:02:22]} 16. Ne4 {[%emt 0:00:46]} Qc7 {[%emt 0:01:53]} 17. Bg5 {[%emt 0:02:36]} Nd5 {[%emt 0:08:33]} 18. Kh1 {[%emt 0:03:27]} h6 {[%emt 0:04:05]} 19. Bh4 {[%emt 0:03:05]} g5 {[%emt 0:03:51]} 20. Bg3 {[%emt 0:00:39]} Qb6 {[%emt 0:06:47]} 21. Qa3 {[%emt 0:10:49]} f5 {[%emt 0:01:51]} 22. exf6 {[%emt 0:02:12]} Nxf6 {[%emt 0:00:33]} 23. Be5 {[%emt 0:08:09]} Qd8 {[%emt 0:01:12]} 24. Bd6 {[%emt 0:02:44]} Rf7 {[%emt 0:04:26]} 25. Be5 {[%emt 0:01:46]} Rf8 {[%emt 0:00:35]} 26. Nxf6+ {[%emt 0:01:07]} Bxf6 {[%emt 0:00:16]} 27. Bxf6 {[%emt 0:00:16]} Rxf6 {[%emt 0:00:12]} 28. Qd6 {[%emt 0:00:47]} Rxf1+ {[%emt 0:05:01]} 29. Rxf1 {[%emt 0:00:09]} Rc8 {[%emt 0:00:34]} 30. Qe5 {[%emt 0:02:14]} Qe7 {[%emt 0:05:46]} 31. Rf6 {[%emt 0:00:47]} Be8 {[%emt 0:00:51] normal} 1-0